bitfinex/quotes_ETHUSD_20250715
["timestamp","ask_amount","ask_price","bid_price","bid_amount"]
[1752602099162,0.1608,3097.4,3097.1,0.03228826]
[1752602099392,0.457,3097.7,3097.2,3.22870072]
[1752602099723,0.1608,3097.6,3097.3,0.03228618]
[1752602100381,0.1608,3097.6,3097.1,0.1608]
[1752602100382,0.6178,3097.6,3097.1,0.1608]
[1752602100586,0.457,3097.5,3097.1,0.1608]
[1752602100785,1.62900373,3097.5,3096.2,1.02159841]
[1752602100996,0.1608,3097.4,3096.8,0.1608]
[1752602101197,3.22863036,3097.3,3096.9,0.03229035]
[1752602101397,3.22923051,3096.8,3096.2,0.24616298]
[1752602101598,0.8,3096.7,3095.1,0.7674]
[1752602101797,3.22976551,3096.2,3095.8,0.1608]
[1752602101996,0.1608,3096.3,3095.8,0.1608]
[1752602102197,0.8,3096.7,3096.1,0.1608]
[1752602102398,0.1608,3096.8,3096.3,3.39039553]
[1752602102597,0.1608,3096.8,3096.4,3.26183029]
[1752602102813,3.22932152,3096.7,3096.4,0.03229556]
[1752602103012,0.1608,3096.8,3096.4,0.03229556]
[1752602103910,0.1608,3096.8,3096.6,3.22934021]
[1752602104107,1.2813,3097.0,3096.6,0.1608]
[1752602104108,0.8243,3097.0,3096.6,0.1608]
[1752602104308,3.38963674,3097.1,3096.6,0.19309348]
[1752602104811,0.1608,3097.1,3096.6,0.19309348]
[1752602105006,0.1608,3097.1,3096.6,3.42239905]
[1752602105228,3.22862571,3097.3,3096.7,0.4709]
[1752602105394,3.22862571,3097.3,3096.8,0.19309139]
[1752602105709,3.22901153,3097.0,3096.8,0.19309139]
[1752602105914,3.22875622,3097.2,3096.3,3.22959448]
[1752602105915,3.22910623,3096.9,3096.3,3.22959448]
[1752602106086,0.457,3097.2,3096.1,3.22985356]
[1752602106288,3.22906235,3096.9,3096.3,3.2296055]
[1752602106491,3.22896187,3097.0,3096.4,3.22954552]
[1752602106696,0.44516624,3097.2,3096.2,0.50322536]
[1752602106895,3.22930839,3096.7,3096.1,3.22981146]
[1752602107084,3.22924403,3096.7,3096.1,3.47068471]
[1752602107290,4.03984403,3096.7,3096.2,3.22975398]
[1752602107486,1.2676,3096.7,3096.2,3.22975398]
[1752602107686,4.49684603,3096.7,3096.0,0.7815]
[1752602107891,2.04018838,3096.7,3096.1,0.03229869]
[1752602108088,2.04018838,3096.7,3096.0,3.22995964]
[1752602108089,5.26949348,3096.7,3095.7,6.2245]
[1752602108292,5.26949348,3096.7,3095.5,0.01]
[1752602108293,0.457,3096.6,3095.5,0.01]
[1752602108512,3.22979637,3096.2,3095.7,0.03230287]
[1752602109018,0.457,3096.6,3095.7,0.03230287]
[1752602109216,3.43356401,3096.5,3095.7,0.03230287]
[1752602109533,3.43356401,3096.5,3095.9,3.2300555]
[1752602110334,0.20401884,3096.5,3095.8,3.2300997]
[1752602110535,0.20401884,3096.5,3095.7,0.03230287]
[1752602110701,3.22934831,3096.6,3095.9,3.26235454]
[1752602110907,0.8106,3096.7,3095.9,0.03230078]
[1752602111230,3.22940746,3096.6,3096.0,3.22990828]
[1752602111390,4.03989306,3096.7,3096.1,3.26213222]
[1752602111592,5.35649804,3096.7,3096.1,3.26213222]
[1752602111814,3.22935032,3096.6,3096.1,3.26213222]
[1752602112015,2.12720498,3096.7,3096.1,0.03229869]
[1752602112256,2.12720498,3096.7,3095.5,3.79044916]
[1752602112257,0.8052,3096.4,3095.5,0.01]
[1752602112422,3.230053,3096.0,3095.5,0.01]
[1752602112721,0.8052,3096.2,3095.5,0.01]
[1752602112916,8.66889928,3096.1,3095.5,0.01]
[1752602113119,3.23037745,3095.7,3095.5,0.01]
[1752602113317,3.23039152,3095.6,3095.5,0.01]
[1752602113505,4.51519152,3095.6,3095.5,0.01]
[1752602114096,1.2848,3095.6,3095.5,0.01]
[1752602114797,6.7218,3095.6,3095.5,0.01]
[1752602115003,7.39398,3095.6,3095.5,0.01]
[1752602115403,1.95698,3095.6,3095.5,0.01]
[1752602115602,0.8278,3095.6,3095.5,0.01]
[1752602115803,6.2648,3095.6,3095.5,0.01]
[1752602116008,6.7312,3095.6,3095.5,3.24049588]
[1752602116209,0.4664,3096.1,3095.8,3.23014412]
[1752602116417,0.1608,3095.9,3095.8,3.23014412]
[1752602116643,0.8273,3096.7,3095.9,0.55]
[1752602116948,0.1608,3096.8,3096.7,3.22924403]
[1752602117250,0.1608,3097.2,3096.8,3.22913975]
[1752602117455,0.7943,3097.7,3097.5,3.22836336]
[1752602117736,0.7943,3097.7,3097.2,3.22863076]
[1752602117737,0.1608,3097.4,3097.2,3.22863076]
[1752602118043,0.1608,3097.2,3097.1,3.22882696]
[1752602118606,0.1608,3097.2,3096.8,3.22913975]
[1752602118607,0.1608,3097.2,3097.0,3.22890092]
[1752602118832,0.4664,3097.1,3096.3,0.55]
[1752602119016,0.978,3097.0,3096.6,3.22934806]
[1752602119319,0.4664,3096.9,3096.5,3.22937099]
[1752602119499,0.1608,3096.7,3096.5,3.22937099]
[1752602120068,0.1608,3096.7,3096.6,3.22934831]
[1752602120228,0.6272,3096.7,3096.2,3.39053999]
[1752602120548,0.6272,3096.7,3096.5,3.2294514]
[1752602120728,0.6272,3096.7,3096.4,3.22953563]
[1752602120924,0.6272,3096.7,3096.5,3.22944839]
[1752602121231,0.4664,3096.6,3096.1,0.24716883]
[1752602121456,0.1608,3096.3,3096.1,3.22980974]
[1752602121760,0.4664,3096.2,3095.7,3.2302652]
[1752602122059,0.1608,3095.9,3095.7,0.24285422]
[1752602122247,0.4664,3096.1,3095.5,0.01]
[1752602122554,0.8053,3095.6,3095.5,0.01]
[1752602122763,1.75196307,3095.6,3095.5,0.01]
[1752602122983,5.44875459,3095.6,3095.5,0.01]
[1752602123322,2.21836307,3095.6,3095.5,0.01]
[1752602125572,1.75196307,3095.6,3095.5,0.01]
[1752602125743,7.18096307,3095.6,3095.5,0.01]
[1752602125953,6.2343,3095.6,3095.5,0.01]
[1752602126530,6.7007,3095.6,3095.5,0.01]
[1752602126829,6.2343,3095.6,3095.5,0.01]
[1752602127388,0.7645,3096.1,3095.5,0.01]
[1752602127687,5.426,3096.5,3095.5,0.6153]
[1752602127832,0.1608,3096.2,3096.0,3.22994623]
[1752602128237,0.1608,3096.2,3095.8,3.2301567]
[1752602128778,0.1608,3096.2,3095.9,3.23002422]
[1752602129133,0.1608,3096.2,3096.1,3.22986983]
[1752602129377,0.1608,3096.0,3095.4,0.7772]
[1752602129540,0.1608,3096.0,3095.7,3.23026738]
[1752602129739,0.1608,3096.0,3095.9,3.23007849]
[1752602129975,0.7979,3096.9,3095.9,4.15838634]
[1752602130152,0.7979,3096.9,3096.5,3.22939818]
[1752602130469,6.2219,3096.9,3096.6,3.22934732]
[1752602130669,6.2219,3096.9,3096.5,3.22940985]
[1752602130871,0.1608,3096.6,3096.5,3.22940985]
[1752602131478,0.4664,3097.2,3096.8,3.22913975]
[1752602131784,0.1608,3096.9,3096.3,0.1608]
[1752602131935,9.11825539,3097.1,3096.4,3.22954234]
[1752602132138,0.1608,3096.7,3096.6,3.22934831]
[1752602132554,0.1608,3096.7,3096.1,0.9842]
[1752602132782,0.1608,3096.7,3096.3,3.22959363]
[1752602132978,1.2224,3096.6,3096.1,0.23678342]
[1752602133287,0.1608,3096.3,3096.0,3.22997262]
[1752602133578,0.1608,3096.3,3096.1,3.22985713]
[1752602133762,0.1608,3096.3,3095.8,3.2301673]
[1752602133962,0.1608,3096.3,3095.8,3.46862299]
[1752602134166,3.22957784,3096.4,3095.8,0.23845569]
[1752602134480,0.1608,3096.1,3095.6,0.03230391]
[1752602134692,0.1608,3096.1,3096.0,3.22997416]
[1752602135207,0.1608,3096.3,3096.2,3.2297644]
[1752602135501,0.1608,3096.3,3096.0,3.22991306]
[1752602135701,0.1608,3096.3,3095.8,0.1608]
[1752602136000,0.6272,3096.3,3095.8,3.39093712]
[1752602136199,0.1608,3096.1,3095.8,0.24634541]
[1752602136405,0.1608,3096.1,3095.9,3.23001199]
[1752602136778,0.1608,3096.1,3095.9,3.2300125]
[1752602136982,0.1608,3096.1,3096.0,3.22997416]
[1752602138308,0.1608,3096.1,3095.8,3.23013507]
[1752602138509,3.39072542,3096.1,3095.5,3.40122712]
[1752602138708,3.39072542,3096.1,3095.5,0.41666071]
[1752602139018,3.39072542,3096.1,3095.5,0.25586071]
[1752602139019,0.7612,3095.9,3095.5,0.25586071]
[1752602139175,3.39119152,3095.6,3095.5,0.01]
[1752602139574,3.85759152,3095.6,3095.5,0.01]
[1752602140619,4.66899152,3095.6,3095.5,0.01]
[1752602142620,3.23148072,3094.6,3094.2,0.01]
[1752602142922,0.7881,3094.5,3094.2,0.01]
[1752602143978,0.1608,3094.4,3094.2,0.01]
[1752602144185,0.6272,3094.4,3094.2,0.01]
[1752602144383,3.69814869,3094.3,3094.2,0.01]
[1752602144607,0.7881,3094.0,3092.7,0.15358068]
[1752602144927,0.7881,3094.0,3091.2,7.757]
[1752602144928,3.23352518,3092.6,3092.5,0.1616]
[1752602145128,5.411,3092.7,3092.1,0.1616]
[1752602145290,0.7881,3092.9,3092.0,4.05753747]
[1752602145291,0.1616,3092.5,3092.0,1.286]
[1752602145494,0.1616,3092.3,3092.2,3.23394347]
[1752602145818,0.1616,3092.4,3092.2,0.23765275]
[1752602146024,3.23343954,3092.7,3091.9,3.23422564]
[1752602146328,0.1616,3092.3,3092.2,3.23394347]
[1752602146492,5.411,3092.8,3092.2,3.23394347]
[1752602146698,0.1616,3092.5,3092.0,0.4626]
[1752602146922,3.23349577,3092.7,3092.0,3.23414835]
[1752602147125,0.1616,3092.2,3092.0,3.23414835]
[1752602147312,0.1616,3092.2,3092.0,0.24672744]
[1752602147510,0.1616,3092.2,3091.7,4.21943665]
[1752602147511,0.1616,3092.2,3091.7,1.01734466]
[1752602147730,0.1616,3092.2,3091.8,0.4626]
[1752602147930,0.1616,3092.2,3091.7,1.01734466]
[1752602148101,0.1616,3092.2,3091.9,3.23423085]
[1752602148298,0.1616,3092.2,3092.0,3.23415239]
[1752602148496,0.1616,3092.2,3091.8,3.0]
[1752602148705,0.1616,3092.2,3091.9,0.002]
[1752602149392,0.4516,3092.2,3091.9,0.002]
[1752602149809,0.82013528,3092.2,3091.9,0.002]
[1752602150017,0.4516,3092.2,3091.9,0.002]
[1752602150344,0.1616,3092.0,3091.6,0.03234571]
[1752602150532,3.23418055,3092.0,3091.3,0.78284884]
[1752602150844,3.23418055,3092.0,3091.2,3.94657163]
[1752602150845,0.1616,3091.7,3091.2,3.23498472]
[1752602151004,3.23453125,3091.7,3091.1,3.23508682]
[1752602151208,0.1616,3091.4,3091.0,0.03235198]
[1752602151409,0.7696,3092.0,3091.3,0.55]
[1752602151638,0.1616,3091.8,3091.5,0.55]
[1752602151819,5.408,3092.2,3091.6,0.49494571]
[1752602152030,0.1616,3092.1,3092.0,3.23414507]
[1752602152228,3.23392105,3092.3,3091.6,0.03234571]
[1752602152437,0.1616,3091.9,3091.6,3.23454503]
[1752602152635,0.1616,3091.9,3091.8,3.23436186]
[1752602152834,0.7696,3092.4,3092.0,3.23409719]
[1752602152835,0.1616,3092.1,3092.0,3.23409719]
[1752602153241,0.1616,3092.1,3091.7,0.4626]
[1752602153455,0.1616,3092.1,3091.8,3.23431582]
[1752602153636,0.1616,3092.1,3091.9,3.23425169]
[1752602153841,0.1616,3092.1,3091.9,3.23419873]
[1752602154418,0.1616,3092.1,3092.0,3.23415265]
[1752602154624,0.1616,3092.1,3091.9,3.69681845]
[1752602154951,0.1616,3092.1,3092.0,3.23415265]
[1752602155157,0.1616,3092.1,3091.9,3.6968119]
[1752602155356,0.1616,3092.1,3091.9,0.4626]
[1752602155562,0.1616,3092.1,3092.0,3.23415265]
[1752602156064,0.1616,3092.1,3091.9,3.69681669]
[1752602156258,0.7696,3092.4,3091.5,0.7971]
[1752602156259,0.7696,3092.4,3092.0,0.4626]
[1752602156434,0.1616,3092.3,3091.9,3.23425725]
[1752602156635,0.1616,3092.1,3091.9,3.23425725]
[1752602156957,0.1616,3092.1,3091.7,0.03234466]
[1752602157154,0.4516,3092.0,3091.3,0.24616934]
[1752602157456,3.2344213,3091.8,3091.2,3.23498783]
[1752602157856,5.405,3092.1,3091.3,3.69748499]
[1752602158057,8.63908239,3092.1,3091.5,3.23461404]
[1752602158545,5.405,3092.1,3091.6,3.23452428]
[1752602158744,5.405,3092.1,3091.5,3.23461404]
[1752602158965,5.405,3092.1,3091.3,0.4626]
[1752602158966,3.23416619,3092.0,3091.4,3.23478035]
[1752602159166,6.26889863,3092.1,3090.9,3.23530363]
[1752602159167,3.23436186,3091.8,3090.9,3.23530363]
[1752602159326,1.2717,3091.9,3091.2,3.23498745]
[1752602159655,1.2717,3091.9,3091.1,3.2350943]
[1752602159821,6.26889863,3092.1,3091.3,3.23488499]
[1752602159822,0.86389863,3092.1,3091.3,3.23488499]
[1752602160021,0.8201,3092.2,3091.3,3.23488499]
[1752602160022,0.8201,3092.2,3091.4,0.4626]
[1752602160253,0.8201,3092.2,3092.1,3.23404805]
[1752602160453,0.8233,3092.6,3092.2,3.23394167]
[1752602160625,0.8233,3092.6,3091.9,0.03234257]
[1752602160829,3.23274121,3093.4,3092.4,3.23373143]
[1752602161029,0.806,3093.3,3092.5,0.55]
[1752602161228,0.806,3093.7,3092.7,0.7938]
[1752602161427,1.2576,3093.7,3092.8,0.58233316]
[1752602161768,0.970781,3095.9,3092.8,0.58233316]
[1752602161769,1.2732,3094.5,3093.7,3.23230491]
[1752602161927,1.2732,3094.5,3093.5,1.2708]
[1752602162260,0.66742,3094.4,3094.2,3.23180917]
[1752602162559,0.66742,3094.4,3093.2,3.23289796]
[1752602162560,0.4516,3094.3,3093.2,3.23289796]
[1752602162751,0.4516,3094.3,3093.4,3.23268895]
[1752602162952,0.4516,3094.3,3093.3,4.04492793]
[1752602163149,0.4516,3094.3,3093.7,3.23231444]
[1752602163475,0.43506813,3094.2,3093.3,3.70791394]
[1752602163645,3.66700535,3094.2,3093.6,3.23246064]
[1752602163832,0.7673,3094.1,3093.3,0.70791394]
[1752602164031,0.7673,3094.1,3093.3,3.70791394]
[1752602164363,0.7673,3094.1,3093.3,3.23275808]
[1752602164364,3.67555822,3094.0,3093.3,3.23275808]
[1752602164676,0.44343053,3094.0,3093.3,3.23278642]
[1752602164845,3.99933761,3094.1,3093.2,3.0]
[1752602165049,0.7673,3094.1,3093.3,0.03232793]
[1752602165372,0.7673,3094.1,3093.7,3.23236259]
[1752602165582,0.7673,3094.1,3093.6,3.2324645]
[1752602165750,3.23212457,3094.0,3093.4,0.55]
[1752602165953,3.23223719,3093.9,3093.4,0.55]
[1752602166154,0.39994246,3094.0,3093.4,0.55]
[1752602166357,3.99932282,3094.1,3093.5,0.03232584]
[1752602166564,0.7673,3094.1,3093.1,0.55]
[1752602166765,3.23254787,3093.6,3093.1,3.55]
[1752602167169,3.39414787,3093.6,3093.1,3.1616]
[1752602167352,3.2324039,3093.7,3093.1,6.26532407]
[1752602167558,0.1616,3093.5,3093.1,6.26532407]
[1752602167757,0.1616,3093.5,3093.2,3.23289337]
[1752602167979,0.1616,3093.5,3093.1,0.49493002]
[1752602168191,0.1616,3093.5,3093.4,3.23268895]
[1752602168477,0.1616,3093.5,3093.3,0.24716559]
[1752602168641,0.1616,3093.5,3093.0,3.23305979]
[1752602168846,0.1616,3093.5,3093.1,3.26530371]
[1752602169053,3.23269902,3093.4,3093.0,0.4626]
[1752602169582,3.23269902,3093.4,3092.7,6.2145]
[1752602169583,3.23287058,3093.3,3092.7,0.8205]
[1752602169786,0.1616,3093.1,3092.7,0.23714897]
[1752602170077,0.1616,3093.1,3092.6,0.1616]
[1752602170278,0.1616,3093.1,3092.6,0.6242]
[1752602170793,3.39462659,3093.1,3092.7,0.0323342]
[1752602170943,3.23315588,3093.0,3091.8,0.8086]
[1752602171143,3.39475588,3093.0,3092.4,3.39526676]
[1752602171401,0.64660661,3093.0,3092.7,3.23341779]
[1752602171690,0.1616,3092.8,3092.7,3.69601779]
[1752602172348,0.1616,3092.8,3092.7,3.64601779]
[1752602173061,0.7776,3093.3,3092.9,3.23313405]
[1752602173376,0.1616,3093.1,3093.0,3.23310701]
[1752602173750,0.1616,3093.1,3093.0,3.69570701]
[1752602174146,0.1616,3093.3,3093.0,0.4626]
[1752602174692,0.1616,3093.3,3092.8,0.1616]
[1752602174877,0.1616,3093.3,3092.8,3.39491297]
[1752602175090,0.1616,3093.3,3092.9,3.26548678]
[1752602175261,0.1616,3093.3,3092.8,0.6169]
[1752602175458,0.1616,3093.3,3092.8,3.85020651]
[1752602175688,3.2326298,3093.5,3092.9,3.23320741]
[1752602175891,0.1616,3093.3,3093.0,3.23310701]
[1752602176097,0.1616,3093.3,3093.2,3.23288859]
[1752602176297,0.1616,3093.3,3093.1,0.4553]
[1752602176612,0.1616,3093.0,3092.7,8.389]
[1752602176761,0.1616,3093.0,3092.8,3.233291]
[1752602176969,0.1616,3093.0,3092.8,3.23322261]
[1752602177280,0.1616,3093.0,3092.7,12.07770312]
[1752602177681,0.1616,3093.0,3092.8,0.48763316]
[1752602177858,0.1616,3093.0,3092.8,0.03233316]
[1752602178056,1.2443,3093.6,3093.0,3.23303562]
[1752602178057,0.1616,3093.4,3093.0,3.23303562]
[1752602178300,0.1616,3093.4,3093.1,0.4553]
[1752602178500,0.1616,3093.4,3093.0,3.26538848]
[1752602178703,0.1616,3093.4,3093.0,3.72068848]
[1752602179314,3.23284802,3093.3,3093.0,0.03233107]
[1752602179523,3.23284802,3093.3,3092.9,0.1616]
[1752602179524,3.23331678,3092.8,3092.4,0.1616]
[1752602179813,3.2334874,3092.7,3092.1,3.85089076]
[1752602180054,3.2334874,3092.7,3092.2,3.23394347]
[1752602180055,0.1616,3092.7,3092.2,3.23394347]
[1752602180391,0.1616,3092.7,3092.3,0.48763838]
[1752602180590,0.8238,3093.1,3092.3,0.48763838]
[1752602180591,0.1616,3093.1,3092.7,3.23336047]
[1752602180837,0.1616,3093.1,3092.8,0.4553]
[1752602180997,0.8265,3093.4,3092.9,0.03233211]
[1752602181332,3.39442945,3093.3,3092.8,0.6169]
[1752602181544,3.23292712,3093.2,3092.8,0.6169]
[1752602181710,3.39444022,3093.3,3092.8,0.6169]
[1752602181911,0.1616,3093.3,3092.9,3.26547917]
[1752602182110,0.1616,3093.3,3092.9,3.72077917]
[1752602182329,0.1616,3093.3,3093.1,3.23297627]
[1752602182626,0.1616,3093.3,3093.1,3.26523576]
[1752602182826,0.1616,3093.3,3093.2,3.68819796]
[1752602183027,0.1616,3093.3,3093.2,4.23819796]
[1752602183208,0.001,3093.7,3093.5,0.55]
[1752602183530,0.001,3093.7,3093.5,0.58232584]
[1752602183952,0.001,3093.7,3093.3,4.51285735]
[1752602183953,0.001,3093.7,3093.3,0.8248]
[1752602184095,0.001,3093.7,3093.5,0.4553]
[1752602184299,0.001,3093.7,3093.6,0.58232479]
[1752602184502,0.001,3093.7,3093.6,1.19922479]
[1752602184740,3.23337547,3093.7,3093.4,0.24718769]
[1752602185053,0.32333755,3093.6,3093.5,3.23258445]
[1752602185223,0.001,3093.7,3093.6,0.4553]
[1752602185536,0.001,3093.7,3093.6,1.03762479]
[1752602185698,0.001,3093.7,3093.6,0.55]
[1752602186034,0.001,3093.7,3093.4,0.24088231]
[1752602186234,0.001,3093.7,3093.3,3.23276562]
[1752602186632,0.001,3093.7,3093.2,5.38]
[1752602186838,0.001,3093.7,3093.1,0.03233002]
[1752602187026,1.54312887,3093.6,3093.1,3.23300248]
[1752602187328,3.68566923,3093.5,3092.9,3.2331572]
[1752602187581,3.68560816,3093.5,3092.9,3.2331572]
[1752602188038,3.68562129,3093.5,3092.9,3.23320981]
[1752602188334,0.001,3093.7,3092.9,0.7969]
[1752602188519,0.001,3093.7,3092.5,5.378]
[1752602188520,0.001,3093.7,3093.6,7.59147995]
[1752602188720,0.8205,3095.5,3094.8,3.23122657]
[1752602189032,0.8205,3095.5,3094.2,0.55]
[1752602189033,0.8205,3095.5,3094.9,0.03231122]
[1752602189239,0.8205,3094.8,3093.7,0.4553]
[1752602189401,0.8205,3094.8,3093.9,3.23206668]
[1752602189599,0.8205,3094.8,3093.8,0.0323227]
[1752602189799,3.2317654,3094.3,3093.8,0.5823227]
[1752602190008,3.2316861,3094.4,3093.8,3.5823227]
[1752602190207,0.64632311,3094.4,3093.7,0.4553]
[1752602190435,0.64632311,3094.4,3093.0,10.99505446]
[1752602190436,0.453,3094.3,3093.1,4.04197451]
[1752602190650,3.23241989,3093.7,3093.2,0.03232897]
[1752602190801,5.829,3094.3,3093.2,3.03232897]
[1752602190802,0.453,3094.1,3093.2,3.03232897]
[1752602191221,0.453,3094.1,3093.0,6.688382]
[1752602191498,3.23250929,3093.6,3093.0,0.24395132]
[1752602191821,3.23263447,3093.5,3092.9,3.26544054]
[1752602192142,3.23251576,3093.6,3093.0,3.18309167]
[1752602192444,0.8205,3094.5,3093.4,0.809]
[1752602192611,0.7559,3094.9,3094.4,3.23156222]
[1752602192999,0.7559,3094.9,3094.5,3.23147087]
[1752602193236,0.7559,3094.9,3094.6,3.23141207]
[1752602193425,0.7659,3095.2,3094.7,3.2313209]
[1752602193628,0.7659,3095.2,3094.2,0.03231853]
[1752602193629,3.99671191,3095.2,3094.2,0.03231853]
[1752602193938,0.40077119,3095.0,3094.8,3.23115078]
[1752602194244,0.001,3095.0,3094.9,4.61353338]
[1752602194429,0.001,3095.0,3094.9,5.03652216]
[1752602194747,0.001,3095.0,3094.7,3.23123201]
[1752602194748,0.001,3095.0,3094.7,0.55]
[1752602194903,0.001,3095.0,3094.5,5.373]
[1752602195101,0.1618,3095.0,3094.5,0.1608]
[1752602195303,0.1618,3095.0,3094.5,0.6161]
[1752602195641,0.1618,3095.0,3094.7,3.23128683]
[1752602196009,0.001,3095.0,3094.9,3.78112216]
[1752602196527,0.001,3095.0,3094.9,4.23642216]
[1752602196699,0.001,3095.0,3094.9,1.0053]
[1752602197135,0.001,3095.0,3094.9,0.55]
[1752602197454,0.001,3095.0,3094.9,4.23642216]
[1752602199408,0.001,3095.0,3094.9,4.26873338]
[1752602199604,0.001,3095.0,3094.8,0.1608]
[1752602199818,0.1618,3095.0,3094.7,0.24732919]
[1752602200020,0.1618,3095.0,3094.9,3.23112216]
[1752602200227,0.001,3095.0,3094.9,4.34722216]
[1752602201247,0.001,3095.0,3094.9,4.37953338]
[1752602202357,0.001,3095.0,3094.9,0.1608]
[1752602202565,0.001,3095.0,3094.9,3.23112216]
[1752602203059,0.8295,3094.9,3094.7,0.23770464]
[1752602203269,0.8295,3094.9,3094.7,3.23132269]
[1752602203559,0.8295,3094.9,3094.3,0.55]
[1752602203723,0.8295,3094.9,3094.7,3.23127715]
[1752602204456,0.8295,3094.9,3094.6,3.23140581]
[1752602204621,0.8295,3094.9,3094.7,3.23132259]
[1752602204958,0.8295,3094.9,3094.2,0.4553]
[1752602205180,3.23122657,3094.8,3094.2,3.2317678]
[1752602205385,0.40607266,3094.7,3094.3,3.23166338]
[1752602205734,0.40607266,3094.7,3094.2,3.23180732]
[1752602205960,0.87187266,3094.7,3094.3,3.23174186]
[1752602206187,0.87187266,3094.7,3094.5,3.23148432]
[1752602206344,0.8295,3094.9,3094.5,3.23148432]
[1752602206546,0.8295,3094.9,3094.5,0.23952134]
[1752602206746,0.8295,3094.9,3094.8,3.23122657]
[1752602206952,0.001,3095.0,3094.5,3.69603289]
[1752602207261,0.001,3095.0,3094.8,3.23115548]
[1752602207564,0.001,3095.0,3094.7,3.23129981]
[1752602207771,0.001,3095.0,3094.9,3.23112216]
[1752602208374,0.001,3095.0,3094.7,3.23128783]
[1752602209369,0.001,3095.0,3094.9,3.23112216]
[1752602210510,0.001,3095.0,3094.9,3.72793338]
[1752602211004,0.001,3095.0,3094.9,4.27793338]
[1752602212203,0.001,3095.0,3094.9,3.23112216]
[1752602212576,0.001,3095.0,3094.9,3.69562216]
[1752602212987,0.001,3095.0,3094.9,3.23112216]
[1752602214574,0.4668,3095.0,3094.5,0.24264869]
[1752602214785,0.4668,3095.0,3094.2,3.23185314]
[1752602214786,0.1608,3094.6,3094.2,3.23185314]
[1752602215104,0.7511,3094.4,3094.1,0.24361245]
[1752602215286,0.1608,3094.1,3094.0,3.23200267]
[1752602215802,0.1608,3094.1,3093.6,0.19392479]
[1752602216105,0.1616,3094.0,3093.9,3.23210689]
[1752602216616,0.7511,3094.4,3094.3,3.23174869]
[1752602216798,0.9119,3094.4,3094.2,3.23177236]
[1752602217107,0.9119,3094.4,3094.3,3.23174869]
[1752602218207,0.1608,3094.4,3094.3,3.23174869]
[1752602219405,0.1608,3094.4,3094.0,0.03232062]
[1752602219603,0.1608,3094.4,3094.3,3.23174869]
[1752602219805,0.1608,3094.4,3094.1,3.23193902]
[1752602219806,0.8324,3094.7,3094.4,3.23156728]
[1752602219987,0.1608,3094.6,3094.1,0.1608]
[1752602220201,0.1608,3094.6,3093.9,0.2471283]
[1752602220202,0.4658,3094.5,3093.9,0.2471283]
[1752602220389,0.4658,3094.5,3091.3,4.53898682]
[1752602220390,4.06529796,3093.2,3091.7,0.8197]
[1752602220590,4.06529796,3093.2,3092.0,0.4645]
[1752602220591,8.99353228,3093.1,3092.0,0.4645]
[1752602220915,8.99353228,3093.1,3092.5,0.24766506]
[1752602221091,9.45933228,3093.1,3092.5,0.24766506]
[1752602221705,6.2263298,3093.1,3092.5,0.24766506]
[1752602222025,6.1854,3093.2,3092.6,3.2677747]
[1752602222432,6.1854,3093.2,3092.9,3.23320589]
[1752602222725,0.4658,3093.1,3092.6,0.002]
[1752602222931,0.1616,3092.9,3092.6,3.23552262]
[1752602223456,0.1616,3092.9,3092.8,3.23331608]
[1752602223723,9.88415767,3093.2,3092.6,3.23552317]
[1752602223927,0.98841577,3093.1,3092.6,0.002]
[1752602224122,0.98841577,3093.1,3092.6,3.23551503]
[1752602224423,0.1616,3092.9,3092.6,0.4665]
[1752602224629,0.1616,3092.9,3092.7,3.2333261]
[1752602224929,6.1854,3093.2,3092.7,3.23342063]
[1752602225257,0.1616,3092.8,3092.6,0.002]
[1752602226634,0.1616,3092.8,3092.7,3.23342063]
[1752602226837,0.8324,3093.2,3093.0,3.23308143]
[1752602227324,0.8324,3093.2,3092.8,3.23331608]
[1752602227526,0.1616,3093.0,3092.9,3.23321154]
[1752602229765,0.776,3092.9,3092.6,0.002]
[1752602229969,0.1616,3092.7,3092.6,0.002]
[1752602230427,0.6274,3092.7,3092.6,0.002]
[1752602230622,4.32448833,3092.7,3092.6,0.002]
[1752602232089,5.9752677,3092.7,3092.6,0.002]
[1752602232360,6.4410677,3092.7,3092.6,0.002]
[1752602232975,5.9752677,3092.7,3092.6,0.002]
[1752602233268,0.8261,3092.6,3092.0,3.23409498]
[1752602233473,0.8261,3092.6,3091.6,0.03434571]
[1752602233474,1.03390648,3092.5,3091.6,0.03434571]
[1752602233665,1.03390648,3092.5,3091.6,0.49884571]
[1752602233852,1.03390648,3092.5,3092.0,3.2340977]
[1752602234174,1.49970648,3092.5,3092.1,3.23404298]
[1752602234373,1.49970648,3092.5,3092.0,3.23412706]
[1752602234573,0.4658,3092.4,3091.9,3.47274033]
[1752602234765,0.4658,3092.4,3092.0,3.2341399]
[1752602234960,1.03390648,3092.5,3092.0,3.2341399]
[1752602235168,0.23258065,3092.4,3092.1,3.23401075]
[1752602235371,0.8261,3092.6,3092.2,3.23388336]
[1752602235677,0.8261,3092.6,3092.4,3.23371097]
[1752602236182,6.1731,3092.6,3092.4,3.23371351]
[1752602236681,0.8037,3093.2,3092.2,0.7944]
[1752602236855,0.8037,3093.0,3091.9,0.49664257]
[1752602237055,0.8037,3093.0,3091.8,0.7944]
[1752602237056,6.43452,3092.9,3092.2,3.23386145]
[1752602237266,6.43452,3092.9,3092.4,3.2336527]
[1752602237579,6.43452,3092.9,3092.1,3.78404805]
[1752602237580,0.65802,3092.9,3092.1,3.78404805]
[1752602237775,5.347,3092.9,3092.6,3.23352518]
[1752602237995,5.347,3092.9,3092.3,3.23382861]
[1752602238148,5.7765,3092.9,3092.5,3.23354438]
[1752602238349,5.347,3092.9,3092.6,3.2334686]
[1752602238602,0.8037,3093.0,3092.3,0.55]
[1752602238757,0.8037,3093.0,3092.7,3.23340282]
[1752602238959,0.4295,3092.9,3092.2,0.03233943]
[1752602239285,0.4295,3092.9,3091.9,3.69848983]
[1752602239286,3.66277992,3092.9,3091.9,0.4643]
[1752602239449,5.79264799,3092.8,3092.4,0.002]